[Event "Live Chess"]
[Site "Chess.com"]
[Date "2023.05.21"]
[Round "-"]
[White "seasidecastle27"]
[Black "Bob2pen"]
[Result "1-0"]
[WhiteElo "1827"]
[BlackElo "1814"]
[TimeControl "300"]
[EndTime "0:17:56 PDT"]
[Termination "seasidecastle27 won by resignation"]

1. d4 {[%clk 0:04:58]} 1... Nf6 {[%clk 0:04:58.1]} 2. Nf3 {[%clk 0:04:55.7]}
2... g6 {[%clk 0:04:56.5]} 3. Bg5 {[%clk 0:04:50.1]} 3... Bg7 {[%clk 0:04:55.2]}
4. Nbd2 {[%clk 0:04:48.2]} 4... O-O {[%clk 0:04:53.5]} 5. e3 {[%clk 0:04:43.9]}
5... d5 {[%clk 0:04:52]} 6. Bd3 {[%clk 0:04:41.6]} 6... c5 {[%clk 0:04:48]} 7.
c3 {[%clk 0:04:40.2]} 7... cxd4 {[%clk 0:04:45.8]} 8. exd4 {[%clk 0:04:38.5]}
8... Nc6 {[%clk 0:04:43.9]} 9. Qe2 {[%clk 0:04:34.9]} 9... Be6 {[%clk
0:04:40.7]} 10. O-O {[%clk 0:04:31.7]} 10... Qd7 {[%clk 0:04:39.4]} 11. Ne5
{[%clk 0:04:21]} 11... Nxe5 {[%clk 0:04:36.2]} 12. dxe5 {[%clk 0:04:19.3]} 12...
Ne8 {[%clk 0:04:29.4]} 13. f4 {[%clk 0:04:12.5]} 13... Bf5 {[%clk 0:04:24.5]}
14. Bxf5 {[%clk 0:04:03.4]} 14... gxf5 {[%clk 0:04:23.2]} 15. Rf3 {[%clk
0:03:51.8]} 15... f6 {[%clk 0:04:19.8]} 16. Bh4 {[%clk 0:03:39.1]} 16... e6
{[%clk 0:04:09.4]} 17. Re1 {[%clk 0:03:21.1]} 17... d4 {[%clk 0:04:01.9]} 18.
exf6 {[%clk 0:03:12.5]} 18... Bxf6 {[%clk 0:03:57.7]} 19. Bxf6 {[%clk
0:03:05.6]} 19... Rxf6 {[%clk 0:03:55.4]} 20. Rg3+ {[%clk 0:02:56.4]} 20... Kh8
{[%clk 0:03:51.4]} 21. Nc4 {[%clk 0:02:35]} 21... dxc3 {[%clk 0:03:38.5]} 22.
Rxc3 {[%clk 0:02:30.5]} 22... Rc8 {[%clk 0:03:11.7]} 23. Ne5 {[%clk 0:02:26.2]}
23... Qd4+ {[%clk 0:03:09.9]} 24. Qe3 {[%clk 0:02:23.6]} 24... Qxe3+ {[%clk
0:03:08.2]} 25. Rexe3 {[%clk 0:02:19.6]} 25... Rd8 {[%clk 0:03:00.1]} 26. Red3
{[%clk 0:02:14.6]} 26... Rxd3 {[%clk 0:02:52.7]} 27. Rxd3 {[%clk 0:02:12.8]}
27... Nc7 {[%clk 0:02:39.7]} 28. Rd8+ {[%clk 0:02:01.6]} 28... Kg7 {[%clk
0:02:38.5]} 29. Rd7+ {[%clk 0:02:00]} 1-0

[Event "Live Chess"]
[Site "Chess.com"]
[Date "2023.05.21"]
[Round "-"]
[White "Ferrarifan27"]
[Black "Denz14"]
[Result "1-0"]
[WhiteElo "2071"]
[BlackElo "1031"]
[TimeControl "300"]
[EndTime "0:18:05 PDT"]
[Termination "Ferrarifan27 won by resignation"]

1. e4 {[%clk 0:04:58.2]} 1... d5 {[%clk 0:04:55.9]} 2. exd5 {[%clk 0:04:56.7]}
2... Qxd5 {[%clk 0:04:55.1]} 3. Nc3 {[%clk 0:04:55.4]} 3... Qd8 {[%clk 0:04:55]}
4. Nf3 {[%clk 0:04:52.6]} 4... Bg4 {[%clk 0:04:52.1]} 5. h3 {[%clk 0:04:50.6]}
5... Bxf3 {[%clk 0:04:50.6]} 6. Qxf3 {[%clk 0:04:49]} 6... c6 {[%clk 0:04:48.5]}
7. Bc4 {[%clk 0:04:45.2]} 7... e6 {[%clk 0:04:47.3]} 8. O-O {[%clk 0:04:42.3]}
8... Nf6 {[%clk 0:04:45.7]} 9. d3 {[%clk 0:04:40.8]} 9... Bd6 {[%clk 0:04:43.7]}
10. Bg5 {[%clk 0:04:38.6]} 10... Nbd7 {[%clk 0:04:40]} 11. Ne4 {[%clk
0:04:36.1]} 11... Be7 {[%clk 0:04:38.9]} 12. Bf4 {[%clk 0:04:27.9]} 12... Nxe4
{[%clk 0:04:35.9]} 13. Qxe4 {[%clk 0:04:24.3]} 13... Nf6 {[%clk 0:04:34.8]} 14.
Qf3 {[%clk 0:04:22.3]} 14... O-O {[%clk 0:04:32.5]} 15. Rfe1 {[%clk 0:04:20.1]}
15... a5 {[%clk 0:04:27.2]} 16. a4 {[%clk 0:04:18.2]} 16... Nd5 {[%clk
0:04:19.4]} 17. Bg3 {[%clk 0:04:14.4]} 17... Bd6 {[%clk 0:04:12]} 18. Rad1
{[%clk 0:04:01.7]} 18... Bxg3 {[%clk 0:04:08.8]} 19. Qxg3 {[%clk 0:04:00.9]}
19... Nf6 {[%clk 0:04:03]} 20. d4 {[%clk 0:03:56.2]} 20... Qd7 {[%clk
0:03:51.5]} 21. c3 {[%clk 0:03:54.3]} 21... Rad8 {[%clk 0:03:37.9]} 22. Re5
{[%clk 0:03:50.9]} 22... Qc7 {[%clk 0:03:29.8]} 23. Rde1 {[%clk 0:03:38.5]}
23... Nd7 {[%clk 0:03:23.7]} 24. Rg5 {[%clk 0:03:27.7]} 24... Qxg3 {[%clk
0:03:22.1]} 25. Rxg3 {[%clk 0:03:25.3]} 25... Nb6 {[%clk 0:03:13.5]} 26. Bb3
{[%clk 0:03:23.9]} 26... Nd5 {[%clk 0:03:07.9]} 27. Re5 {[%clk 0:03:21.5]} 27...
Rde8 {[%clk 0:02:59.7]} 28. h4 {[%clk 0:03:18.3]} 28... f6 {[%clk 0:02:57]} 29.
Re1 {[%clk 0:03:13.2]} 29... Kh8 {[%clk 0:02:31.1]} 30. h5 {[%clk 0:03:03.3]}
30... h6 {[%clk 0:02:28.5]} 31. Bxd5 {[%clk 0:02:53.5]} 31... exd5 {[%clk
0:02:25.5]} 32. Rge3 {[%clk 0:02:53]} 32... Rxe3 {[%clk 0:02:24.1]} 33. Rxe3
{[%clk 0:02:52.9]} 33... Kg8 {[%clk 0:02:19]} 34. Re7 {[%clk 0:02:42.6]} 34...
Rf7 {[%clk 0:02:17.4]} 35. Re6 {[%clk 0:02:41]} 35... Kf8 {[%clk 0:02:13.9]} 36.
f4 {[%clk 0:02:30.7]} 36... Re7 {[%clk 0:02:12.6]} 37. Rxe7 {[%clk 0:02:27.1]}
37... Kxe7 {[%clk 0:02:08.2]} 38. g4 {[%clk 0:02:26.1]} 38... b5 {[%clk
0:02:03.2]} 39. b3 {[%clk 0:02:22.4]} 39... Kd6 {[%clk 0:01:53.6]} 40. Kf2
{[%clk 0:02:20.7]} 40... c5 {[%clk 0:01:52]} 41. dxc5+ {[%clk 0:02:16]} 41...
Kxc5 {[%clk 0:01:50.8]} 42. axb5 {[%clk 0:02:14.3]} 42... Kxb5 {[%clk
0:01:49.7]} 43. Ke3 {[%clk 0:02:13.4]} 43... a4 {[%clk 0:01:48.8]} 44. bxa4+
{[%clk 0:02:12.1]} 44... Kxa4 {[%clk 0:01:46.1]} 45. Kd4 {[%clk 0:02:11.3]}
45... Kb3 {[%clk 0:01:44.2]} 46. Kxd5 {[%clk 0:02:10]} 46... Kxc3 {[%clk
0:01:42.8]} 47. Ke6 {[%clk 0:02:09.3]} 47... Kd3 {[%clk 0:01:39.2]} 48. Kf7
{[%clk 0:01:59.2]} 48... Ke4 {[%clk 0:01:37.7]} 49. f5 {[%clk 0:01:57.3]} 49...
Kf4 {[%clk 0:01:35.2]} 50. Kxg7 {[%clk 0:01:56.1]} 50... Kxg4 {[%clk 0:01:33.7]}
51. Kxf6 {[%clk 0:01:55.4]} 51... Kxh5 {[%clk 0:01:31.3]} 52. Kg7 {[%clk
0:01:54.4]} 52... Kg5 {[%clk 0:01:28.3]} 53. f6 {[%clk 0:01:53.7]} 53... h5
{[%clk 0:01:27.4]} 54. f7 {[%clk 0:01:53.2]} 54... h4 {[%clk 0:01:24.7]} 55.
f8=Q {[%clk 0:01:52.3]} 55... h3 {[%clk 0:01:22.6]} 56. Qf3 {[%clk 0:01:49.8]}
56... Kh4 {[%clk 0:01:20.6]} 57. Qh1 {[%clk 0:01:48.2]} 57... Kg3 {[%clk
0:01:19.3]} 58. Qg1+ {[%clk 0:01:45.9]} 58... Kh4 {[%clk 0:01:16.1]} 59. Kg6
{[%clk 0:01:40.6]} 59... h2 {[%clk 0:01:11.5]} 60. Qxh2+ {[%clk 0:01:39.5]}
60... Kg4 {[%clk 0:01:10.3]} 61. Qh5+ {[%clk 0:01:36.1]} 1-0

[Event "Live Chess"]
[Site "Chess.com"]
[Date "2023.05.21"]
[Round "-"]
[White "Hacker_2009"]
[Black "KeithArkell"]
[Result "0-1"]
[WhiteElo "1951"]
[BlackElo "2555"]
[TimeControl "300"]
[EndTime "0:18:05 PDT"]
[Termination "KeithArkell won by resignation"]

1. d4 {[%clk 0:04:58.3]} 1... e6 {[%clk 0:04:33.9]} 2. Nf3 {[%clk 0:04:53.7]}
2... Nf6 {[%clk 0:04:32.6]} 3. c4 {[%clk 0:04:52.3]} 3... Bb4+ {[%clk 0:04:31]}
4. Bd2 {[%clk 0:04:51.1]} 4... Bxd2+ {[%clk 0:04:29.7]} 5. Qxd2 {[%clk
0:04:48.5]} 5... d6 {[%clk 0:04:28.5]} 6. e3 {[%clk 0:04:47.7]} 6... Qe7 {[%clk
0:04:27.7]} 7. Nc3 {[%clk 0:04:46.3]} 7... e5 {[%clk 0:04:27.2]} 8. Qc2 {[%clk
0:04:38.3]} 8... Bg4 {[%clk 0:04:24.5]} 9. Be2 {[%clk 0:04:22]} 9... Bxf3 {[%clk
0:04:18.5]} 10. Bxf3 {[%clk 0:04:20.3]} 10... exd4 {[%clk 0:04:17.9]} 11. Nb5
{[%clk 0:04:13.3]} 11... Nc6 {[%clk 0:04:10.8]} 12. Bxc6+ {[%clk 0:04:10.1]}
12... bxc6 {[%clk 0:04:10.1]} 13. Nxd4 {[%clk 0:04:09.4]} 13... c5 {[%clk
0:04:07]} 14. Qa4+ {[%clk 0:04:04.4]} 14... Qd7 {[%clk 0:04:03]} 15. Qxd7+
{[%clk 0:03:51.9]} 15... Kxd7 {[%clk 0:04:00.2]} 16. Nf3 {[%clk 0:03:51.5]}
16... Rab8 {[%clk 0:03:58]} 17. b3 {[%clk 0:03:50.3]} 17... a5 {[%clk
0:03:57.4]} 18. O-O {[%clk 0:03:48.9]} 18... Ne4 {[%clk 0:03:55.3]} 19. Rfd1
{[%clk 0:03:43.8]} 19... a4 {[%clk 0:03:53.4]} 20. Rd3 {[%clk 0:03:26.5]} 20...
Rb7 {[%clk 0:03:45.9]} 21. Rad1 {[%clk 0:03:22.1]} 21... Rhb8 {[%clk 0:03:42.3]}
22. Ne5+ {[%clk 0:03:13.5]} 22... Ke6 {[%clk 0:03:34]} 23. Nc6 {[%clk
0:03:12.8]} 23... Ra8 {[%clk 0:03:31.5]} 24. f3 {[%clk 0:03:06.2]} 24... axb3
{[%clk 0:03:21.5]} 25. Rxb3 {[%clk 0:02:56.4]} 25... Rxb3 {[%clk 0:03:17.2]} 26.
axb3 {[%clk 0:02:56.2]} 26... Nf6 {[%clk 0:02:50.9]} 27. b4 {[%clk 0:02:44.3]}
27... cxb4 {[%clk 0:02:49.1]} 28. Nxb4 {[%clk 0:02:42.2]} 28... Ra4 {[%clk
0:02:45.4]} 29. Rb1 {[%clk 0:02:37.8]} 29... c5 {[%clk 0:02:39]} 30. Nd5 {[%clk
0:02:25.2]} 30... Nxd5 {[%clk 0:02:36.8]} 31. cxd5+ {[%clk 0:02:24.6]} 31...
Kxd5 {[%clk 0:02:36.2]} 32. Kf2 {[%clk 0:02:21.7]} 32... Ra2+ {[%clk 0:02:34.8]}
33. Kg3 {[%clk 0:02:20.1]} 33... c4 {[%clk 0:02:34.1]} 34. Rb7 {[%clk
0:02:18.2]} 34... Ke6 {[%clk 0:02:32.2]} 35. Rc7 {[%clk 0:02:17.1]} 35... d5
{[%clk 0:02:31.4]} 36. e4 {[%clk 0:02:16.1]} 36... Kd6 {[%clk 0:02:30.6]} 37.
Rc8 {[%clk 0:02:13.5]} 37... Ra7 {[%clk 0:02:25.4]} 38. exd5 {[%clk 0:02:10.3]}
38... Kxd5 {[%clk 0:02:15.5]} 39. Kf4 {[%clk 0:02:03]} 39... Kd4 {[%clk
0:02:12.2]} 40. Rd8+ {[%clk 0:01:58]} 40... Kc3 {[%clk 0:02:11.2]} 41. Rc8
{[%clk 0:01:56.9]} 41... Kd3 {[%clk 0:02:06.5]} 42. Rd8+ {[%clk 0:01:55.2]}
42... Kc2 {[%clk 0:02:05.6]} 43. Ke3 {[%clk 0:01:54.4]} 43... c3 {[%clk
0:02:04]} 44. Rc8 {[%clk 0:01:52.5]} 44... Re7+ {[%clk 0:02:01.6]} 45. Kd4
{[%clk 0:01:49.4]} 45... Kd2 {[%clk 0:02:00.6]} 0-1

[Event "Live Chess"]
[Site "Chess.com"]
[Date "2023.05.21"]
[Round "-"]
[White "BJAW87"]
[Black "martynstanley"]
[Result "1-0"]
[WhiteElo "1442"]
[BlackElo "986"]
[TimeControl "300"]
[EndTime "0:18:28 PDT"]
[Termination "BJAW87 won by checkmate"]

1. e4 {[%clk 0:04:59]} 1... e6 {[%clk 0:04:59.3]} 2. d4 {[%clk 0:04:57.6]} 2...
d5 {[%clk 0:04:58.7]} 3. exd5 {[%clk 0:04:56.4]} 3... exd5 {[%clk 0:04:57.7]} 4.
Nf3 {[%clk 0:04:55.3]} 4... c5 {[%clk 0:04:57]} 5. Bb5+ {[%clk 0:04:50.5]} 5...
Nc6 {[%clk 0:04:56]} 6. O-O {[%clk 0:04:39.8]} 6... a6 {[%clk 0:04:54.1]} 7.
Bxc6+ {[%clk 0:04:37.9]} 7... bxc6 {[%clk 0:04:53.2]} 8. Bg5 {[%clk 0:04:33.1]}
8... Ne7 {[%clk 0:04:51.6]} 9. Re1 {[%clk 0:04:31.2]} 9... f6 {[%clk 0:04:50.1]}
10. Bf4 {[%clk 0:04:21.2]} 10... cxd4 {[%clk 0:04:47.3]} 11. Nxd4 {[%clk
0:04:19.7]} 11... Bb7 {[%clk 0:04:46]} 12. Ne6 {[%clk 0:04:03.2]} 12... Qd7
{[%clk 0:04:42.2]} 13. Nc7+ {[%clk 0:04:01.8]} 13... Kf7 {[%clk 0:04:39.1]} 14.
Nxa8 {[%clk 0:04:00.6]} 14... Bxa8 {[%clk 0:04:38.3]} 15. Nc3 {[%clk 0:03:55.2]}
15... d4 {[%clk 0:04:34.7]} 16. Ne4 {[%clk 0:03:49.1]} 16... Qd5 {[%clk
0:04:32.4]} 17. c4 {[%clk 0:03:33.6]} 17... Qxc4 {[%clk 0:04:28.6]} 18. Nd6+
{[%clk 0:03:31.9]} 18... Kg6 {[%clk 0:04:22.6]} 19. Nxc4 {[%clk 0:03:31.8]}
19... Nd5 {[%clk 0:04:20.9]} 20. Bg3 {[%clk 0:03:29.8]} 20... Bc5 {[%clk
0:04:17.9]} 21. Qg4+ {[%clk 0:03:22.6]} 21... Kf7 {[%clk 0:04:14.8]} 22. a3
{[%clk 0:03:13.9]} 22... g5 {[%clk 0:04:08.4]} 23. b4 {[%clk 0:03:11.2]} 23...
Bb6 {[%clk 0:04:06.2]} 24. Nd6+ {[%clk 0:03:09.8]} 24... Kg7 {[%clk 0:04:03.9]}
25. Re8 {[%clk 0:02:51]} 25... Rxe8 {[%clk 0:04:01.8]} 26. Nxe8+ {[%clk
0:02:50.9]} 26... Kg6 {[%clk 0:04:01]} 27. Nd6 {[%clk 0:02:43.7]} 27... d3
{[%clk 0:03:58.8]} 28. Rd1 {[%clk 0:02:39.8]} 28... Nxb4 {[%clk 0:03:53.6]} 29.
axb4 {[%clk 0:02:36.7]} 29... a5 {[%clk 0:03:52.9]} 30. bxa5 {[%clk 0:02:33.5]}
30... Bxa5 {[%clk 0:03:51.9]} 31. Rxd3 {[%clk 0:02:30.1]} 31... c5 {[%clk
0:03:50.1]} 32. Qf5+ {[%clk 0:02:24.5]} 32... Kh6 {[%clk 0:03:47.4]} 33. Qxc5
{[%clk 0:02:16.8]} 33... Be4 {[%clk 0:03:42.7]} 34. Re3 {[%clk 0:02:06.1]} 34...
f5 {[%clk 0:03:32.7]} 35. Qxa5 {[%clk 0:02:02.2]} 35... f4 {[%clk 0:03:30.1]}
36. Rxe4 {[%clk 0:01:59.6]} 36... fxg3 {[%clk 0:03:29.1]} 37. Nf7+ {[%clk
0:01:57.1]} 37... Kh5 {[%clk 0:03:27.1]} 38. hxg3 {[%clk 0:01:53.9]} 38... h6
{[%clk 0:03:24.3]} 39. Rh4+ {[%clk 0:01:51.9]} 39... Kg6 {[%clk 0:03:22.4]} 40.
Nh8+ {[%clk 0:01:47.2]} 40... Kh7 {[%clk 0:03:19.9]} 41. Qc7+ {[%clk 0:01:43.7]}
41... Kxh8 {[%clk 0:03:18.7]} 42. Rxh6+ {[%clk 0:01:41.9]} 42... Kg8 {[%clk
0:03:17.2]} 43. Rh7 {[%clk 0:01:30.5]} 43... Kf8 {[%clk 0:03:15.9]} 44. Qf7#
{[%clk 0:01:29.8]} 1-0

[Event "Live Chess"]
[Site "Chess.com"]
[Date "2023.05.21"]
[Round "-"]
[White "Vitalii18a"]
[Black "Jo1ts"]
[Result "1-0"]
[WhiteElo "1109"]
[BlackElo "819"]
[TimeControl "300"]
[EndTime "0:18:30 PDT"]
[Termination "Vitalii18a won by resignation"]

1. e4 {[%clk 0:04:57.9]} 1... d5 {[%clk 0:04:54.3]} 2. e5 {[%clk 0:04:56]} 2...
c5 {[%clk 0:04:52.6]} 3. d4 {[%clk 0:04:54.2]} 3... cxd4 {[%clk 0:04:50.7]} 4.
Qxd4 {[%clk 0:04:52.1]} 4... Nc6 {[%clk 0:04:50.3]} 5. Qd1 {[%clk 0:04:48.7]}
5... Nxe5 {[%clk 0:04:47.9]} 6. Bb5+ {[%clk 0:04:42.9]} 6... Nc6 {[%clk
0:04:47]} 7. Nc3 {[%clk 0:04:33.9]} 7... a6 {[%clk 0:04:45.7]} 8. Ba4 {[%clk
0:04:30]} 8... Nf6 {[%clk 0:04:40.6]} 9. Bg5 {[%clk 0:04:16.5]} 9... b5 {[%clk
0:04:32.6]} 10. Bb3 {[%clk 0:04:14.4]} 10... e6 {[%clk 0:04:27.9]} 11. Nf3
{[%clk 0:04:12.8]} 11... h6 {[%clk 0:04:24.7]} 12. Bh4 {[%clk 0:04:11.3]} 12...
g5 {[%clk 0:04:22.9]} 13. Bg3 {[%clk 0:04:09.4]} 13... Bd6 {[%clk 0:04:20.8]}
14. O-O {[%clk 0:04:01.4]} 14... Bxg3 {[%clk 0:04:17.9]} 15. fxg3 {[%clk
0:04:00.1]} 15... Qd6 {[%clk 0:03:56.1]} 16. Re1 {[%clk 0:03:58.1]} 16... Bb7
{[%clk 0:03:47.8]} 17. Nxd5 {[%clk 0:03:43.3]} 17... Nxd5 {[%clk 0:03:42.9]} 18.
Bxd5 {[%clk 0:03:38.6]} 18... Qxd5 {[%clk 0:03:33.5]} 19. Qxd5 {[%clk
0:03:33.8]} 1-0

[Event "Live Chess"]
[Site "Chess.com"]
[Date "2023.05.21"]
[Round "-"]
[White "WelshTiger"]
[Black "smoggyrabbit"]
[Result "1-0"]
[WhiteElo "2358"]
[BlackElo "1731"]
[TimeControl "300"]
[EndTime "0:18:41 PDT"]
[Termination "WelshTiger won by resignation"]

1. e4 {[%clk 0:04:59.6]} 1... e6 {[%clk 0:04:56.8]} 2. d4 {[%clk 0:04:55.5]}
2... d5 {[%clk 0:04:55.6]} 3. Nd2 {[%clk 0:04:54]} 3... c5 {[%clk 0:04:52.6]} 4.
exd5 {[%clk 0:04:52.9]} 4... Qxd5 {[%clk 0:04:51.2]} 5. dxc5 {[%clk 0:04:52.1]}
5... Bxc5 {[%clk 0:04:49.6]} 6. Ngf3 {[%clk 0:04:51.5]} 6... Nf6 {[%clk
0:04:44.8]} 7. Bc4 {[%clk 0:04:50.1]} 7... Qd8 {[%clk 0:04:42.5]} 8. Qe2 {[%clk
0:04:48.7]} 8... O-O {[%clk 0:04:40]} 9. O-O {[%clk 0:04:47.3]} 9... Nc6 {[%clk
0:04:37.2]} 10. c3 {[%clk 0:04:46.6]} 10... Re8 {[%clk 0:04:26.1]} 11. Rd1
{[%clk 0:04:36.8]} 11... e5 {[%clk 0:04:07.8]} 12. Ne4 {[%clk 0:04:33]} 12...
Qe7 {[%clk 0:03:55.2]} 13. Nxc5 {[%clk 0:04:31.1]} 13... Qxc5 {[%clk 0:03:53.7]}
14. Be3 {[%clk 0:04:30.8]} 14... Qe7 {[%clk 0:03:49.5]} 15. h3 {[%clk
0:04:17.8]} 15... Be6 {[%clk 0:03:42.9]} 16. Bxe6 {[%clk 0:04:12.4]} 16... Qxe6
{[%clk 0:03:42.8]} 17. Qb5 {[%clk 0:04:11.7]} 17... Qe7 {[%clk 0:03:16.5]} 18.
Bc5 {[%clk 0:04:06.4]} 18... Qc7 {[%clk 0:02:59.6]} 19. Bd6 {[%clk 0:04:03.2]}
19... Qa5 {[%clk 0:02:51.1]} 20. Qxa5 {[%clk 0:04:01.2]} 20... Nxa5 {[%clk
0:02:50.1]} 21. Nxe5 {[%clk 0:03:59.9]} 21... Re6 {[%clk 0:02:35.5]} 22. Bc7
{[%clk 0:03:54.6]} 22... Nc6 {[%clk 0:02:33.2]} 23. Nxc6 {[%clk 0:03:53.1]}
23... Rxc6 {[%clk 0:02:30]} 24. Be5 {[%clk 0:03:50.3]} 24... Re8 {[%clk
0:02:26.3]} 25. Bd4 {[%clk 0:03:43.8]} 25... Re2 {[%clk 0:02:21.5]} 26. Rab1
{[%clk 0:03:34]} 26... h6 {[%clk 0:02:17.8]} 27. Kf1 {[%clk 0:03:32.9]} 27...
Re8 {[%clk 0:02:14.4]} 28. Re1 {[%clk 0:03:30.3]} 28... Rce6 {[%clk 0:02:10.5]}
29. Rxe6 {[%clk 0:03:28.2]} 29... Rxe6 {[%clk 0:02:10.4]} 30. Re1 {[%clk
0:03:21.2]} 30... Ne4 {[%clk 0:02:06.8]} 31. Re2 {[%clk 0:03:12.3]} 31... a6
{[%clk 0:01:52.2]} 32. Ke1 {[%clk 0:03:11.4]} 32... Ng5 {[%clk 0:01:45.4]} 33.
Rxe6 {[%clk 0:03:08.4]} 33... Nxe6 {[%clk 0:01:45.3]} 34. Be3 {[%clk 0:03:06.3]}
34... Kf8 {[%clk 0:01:44.2]} 35. Ke2 {[%clk 0:03:05.6]} 35... Ke7 {[%clk
0:01:43.1]} 36. Kd3 {[%clk 0:03:05.2]} 36... Kd6 {[%clk 0:01:41.4]} 37. Kc4
{[%clk 0:03:03.3]} 37... Kc6 {[%clk 0:01:38.8]} 38. g4 {[%clk 0:02:42.6]} 38...
b5+ {[%clk 0:01:36.1]} 39. Kd3 {[%clk 0:02:41.4]} 39... Kd5 {[%clk 0:01:34.9]}
40. b3 {[%clk 0:02:39.1]} 40... Nc5+ {[%clk 0:01:29.7]} 41. Bxc5 {[%clk
0:02:37.8]} 41... Kxc5 {[%clk 0:01:28.6]} 42. Ke4 {[%clk 0:02:37.3]} 42... a5
{[%clk 0:01:23.6]} 43. a3 {[%clk 0:02:36.7]} 43... a4 {[%clk 0:01:21.1]} 44.
bxa4 {[%clk 0:02:32.5]} 44... bxa4 {[%clk 0:01:17.2]} 45. Kd3 {[%clk 0:02:31.6]}
45... Kd5 {[%clk 0:01:13.1]} 46. c4+ {[%clk 0:02:30.2]} 46... Kc5 {[%clk
0:01:10.9]} 47. Kc3 {[%clk 0:02:29.4]} 47... g5 {[%clk 0:01:05.2]} 48. f3 {[%clk
0:02:26.9]} 48... f6 {[%clk 0:01:03.6]} 49. Kd3 {[%clk 0:02:26.2]} 49... Kc6
{[%clk 0:01:00.2]} 50. Kd4 {[%clk 0:02:25.6]} 50... Kd6 {[%clk 0:00:59.1]} 51.
c5+ {[%clk 0:02:21.3]} 51... Kc6 {[%clk 0:00:58.4]} 52. Kc4 {[%clk 0:02:21.2]}
52... Kc7 {[%clk 0:00:57.3]} 53. Kb5 {[%clk 0:02:20.5]} 53... Kb7 {[%clk
0:00:55.4]} 54. Kxa4 {[%clk 0:02:18.9]} 54... Kc6 {[%clk 0:00:53.6]} 55. Kb4
{[%clk 0:02:18.4]} 55... Kd5 {[%clk 0:00:52.7]} 56. Kb5 {[%clk 0:02:17.8]} 56...
Kd4 {[%clk 0:00:51]} 57. c6 {[%clk 0:02:17]} 57... Ke3 {[%clk 0:00:50.5]} 58. c7
{[%clk 0:02:16.5]} 58... Kxf3 {[%clk 0:00:50]} 59. c8=Q {[%clk 0:02:15.5]} 59...
Kg3 {[%clk 0:00:49.3]} 60. Qf5 {[%clk 0:02:14.7]} 60... Kxh3 {[%clk 0:00:48.5]}
61. Qxf6 {[%clk 0:02:14.1]} 61... Kxg4 {[%clk 0:00:47.2]} 62. Qxh6 {[%clk
0:02:13.3]} 62... Kf4 {[%clk 0:00:45]} 63. a4 {[%clk 0:02:12]} 63... Kf5 {[%clk
0:00:43.9]} 64. a5 {[%clk 0:02:10.3]} 64... g4 {[%clk 0:00:43.2]} 65. a6 {[%clk
0:02:09.4]} 65... g3 {[%clk 0:00:42.5]} 66. Qh3+ {[%clk 0:02:07.9]} 66... Kf4
{[%clk 0:00:41.3]} 67. Qg2 {[%clk 0:02:07.8]} 67... Kg4 {[%clk 0:00:39.7]} 68.
a7 {[%clk 0:02:07.2]} 1-0

[Event "Live Chess"]
[Site "Chess.com"]
[Date "2023.05.21"]
[Round "-"]
[White "Driftboard"]
[Black "peter-785"]
[Result "0-1"]
[WhiteElo "808"]
[BlackElo "1210"]
[TimeControl "300"]
[EndTime "0:18:49 PDT"]
[Termination "peter-785 won by checkmate"]

1. e4 {[%clk 0:04:59]} 1... c5 {[%clk 0:04:59]} 2. Nf3 {[%clk 0:04:57.4]} 2...
d6 {[%clk 0:04:58.6]} 3. Nc3 {[%clk 0:04:55.1]} 3... e6 {[%clk 0:04:58]} 4. Bb5+
{[%clk 0:04:53.5]} 4... Nd7 {[%clk 0:04:55.7]} 5. Bxd7+ {[%clk 0:04:53]} 5...
Bxd7 {[%clk 0:04:54]} 6. O-O {[%clk 0:04:52.7]} 6... Nf6 {[%clk 0:04:53]} 7. d3
{[%clk 0:04:52.2]} 7... Be7 {[%clk 0:04:52.5]} 8. Bg5 {[%clk 0:04:51.6]} 8... a6
{[%clk 0:04:51.6]} 9. h3 {[%clk 0:04:51.1]} 9... b5 {[%clk 0:04:51.1]} 10. Bxf6
{[%clk 0:04:50.3]} 10... Bxf6 {[%clk 0:04:49.2]} 11. Nb1 {[%clk 0:04:49.4]}
11... Bxb2 {[%clk 0:04:47.6]} 12. Nbd2 {[%clk 0:04:45.9]} 12... Bxa1 {[%clk
0:04:46.2]} 13. Qxa1 {[%clk 0:04:45.7]} 13... Qf6 {[%clk 0:04:43.9]} 14. Qxf6
{[%clk 0:04:43]} 14... gxf6 {[%clk 0:04:42.2]} 15. c3 {[%clk 0:04:40.2]} 15...
Ke7 {[%clk 0:04:38.1]} 16. d4 {[%clk 0:04:39.3]} 16... cxd4 {[%clk 0:04:31.5]}
17. cxd4 {[%clk 0:04:37.6]} 17... h6 {[%clk 0:04:19.3]} 18. e5 {[%clk 0:04:36]}
18... fxe5 {[%clk 0:04:13.1]} 19. dxe5 {[%clk 0:04:34.4]} 19... d5 {[%clk
0:04:12.1]} 20. g4 {[%clk 0:04:27.4]} 20... Rac8 {[%clk 0:04:11.3]} 21. Nb3
{[%clk 0:04:25.6]} 21... Rc2 {[%clk 0:04:04.1]} 22. Rc1 {[%clk 0:04:20.3]} 22...
Rxc1+ {[%clk 0:04:01.8]} 23. Nxc1 {[%clk 0:04:18.6]} 23... Rc8 {[%clk
0:04:00.9]} 24. Nd3 {[%clk 0:04:17.4]} 24... Rc3 {[%clk 0:03:51.5]} 25. Nde1
{[%clk 0:04:15.2]} 25... Ra3 {[%clk 0:03:49.9]} 26. Kg2 {[%clk 0:04:07.4]} 26...
Rxa2 {[%clk 0:03:47]} 27. Kg3 {[%clk 0:04:07]} 27... Ra1 {[%clk 0:03:34.8]} 28.
Nd3 {[%clk 0:04:01.2]} 28... Ra3 {[%clk 0:03:22.5]} 29. Nde1 {[%clk 0:03:51.2]}
29... Rxf3+ {[%clk 0:03:13.6]} 30. Kxf3 {[%clk 0:03:49.2]} 30... a5 {[%clk
0:03:11.6]} 31. Ke3 {[%clk 0:03:48.3]} 31... a4 {[%clk 0:03:11.1]} 32. Kd2
{[%clk 0:03:47.9]} 32... Kd8 {[%clk 0:03:02.6]} 33. Kc2 {[%clk 0:03:47.3]} 33...
Kc7 {[%clk 0:03:01.8]} 34. Kc3 {[%clk 0:03:44.7]} 34... Kb6 {[%clk 0:03:00.8]}
35. Kb4 {[%clk 0:03:44]} 35... Bc8 {[%clk 0:02:50.1]} 36. Nd3 {[%clk 0:03:41]}
36... Bb7 {[%clk 0:02:43.3]} 37. Nf4 {[%clk 0:03:33.1]} 37... Kc6 {[%clk
0:02:31.8]} 38. f3 {[%clk 0:03:27.7]} 38... d4 {[%clk 0:02:29.8]} 39. h4 {[%clk
0:03:22.7]} 39... Kb6 {[%clk 0:02:17.8]} 40. g5 {[%clk 0:03:14.7]} 40... hxg5
{[%clk 0:02:15]} 41. hxg5 {[%clk 0:03:13.8]} 41... Bxf3 {[%clk 0:02:13.9]} 42.
g6 {[%clk 0:03:08.6]} 42... fxg6 {[%clk 0:02:12]} 43. Nxg6 {[%clk 0:03:07.8]}
43... Bg4 {[%clk 0:02:04]} 44. Nf4 {[%clk 0:03:04.8]} 44... Bf5 {[%clk
0:02:02.2]} 45. Ne2 {[%clk 0:02:53.3]} 45... d3 {[%clk 0:01:59.7]} 46. Nc3
{[%clk 0:02:50.7]} 46... Bg4 {[%clk 0:01:51.9]} 47. Nxb5 {[%clk 0:02:41.5]}
47... d2 {[%clk 0:01:50.4]} 48. Nc3 {[%clk 0:02:38.8]} 48... d1=Q {[%clk
0:01:47.8]} 49. Nxd1 {[%clk 0:02:38.4]} 49... Bxd1 {[%clk 0:01:46.7]} 50. Ka3
{[%clk 0:02:35.5]} 50... Kc5 {[%clk 0:01:46]} 51. Kb2 {[%clk 0:02:33.7]} 51...
Kd4 {[%clk 0:01:45.2]} 52. Kc1 {[%clk 0:02:32.5]} 52... Bb3 {[%clk 0:01:44.2]}
53. Kb2 {[%clk 0:02:31.6]} 53... Kxe5 {[%clk 0:01:43.8]} 54. Kc3 {[%clk
0:02:30.8]} 54... Kf4 {[%clk 0:01:41.9]} 55. Kd3 {[%clk 0:02:29.9]} 55... e5
{[%clk 0:01:40.3]} 56. Kd2 {[%clk 0:02:27.6]} 56... Kf3 {[%clk 0:01:39.8]} 57.
Kd3 {[%clk 0:02:26.1]} 57... e4+ {[%clk 0:01:39.1]} 58. Kd2 {[%clk 0:02:24.9]}
58... Kf2 {[%clk 0:01:38.1]} 59. Kc1 {[%clk 0:02:21.9]} 59... e3 {[%clk
0:01:37.7]} 60. Kb2 {[%clk 0:02:19.1]} 60... e2 {[%clk 0:01:35.8]} 61. Ka3
{[%clk 0:02:18.4]} 61... e1=Q {[%clk 0:01:32.4]} 62. Kb2 {[%clk 0:02:17.3]}
62... Qd2+ {[%clk 0:01:28.2]} 63. Kb1 {[%clk 0:02:16.3]} 63... Qc2+ {[%clk
0:01:25.1]} 64. Ka1 {[%clk 0:02:14.9]} 64... Qa2# {[%clk 0:01:23.4]} 0-1